[Event "*** SCC Grand Prix: Titled Tuesday Blitz"]
[Site "Chess.com"]
[Date "2020.08.11"]
[Round "8"]
[White "Srchesschilango"]
[Black "larisakalinina"]
[Result "1-0"]
[WhiteElo "2219"]
[BlackElo "1976"]
[TimeControl "180+1"]
[EndTime "11:34:38 PDT"]
[Termination "Srchesschilango won on time"]

1. d4 {[%clk 0:03:00.8]} 1... Nf6 {[%clk 0:02:58.5]} 2. c4 {[%clk 0:02:59.9]}
2... c5 {[%clk 0:02:58.8]} 3. d5 {[%clk 0:02:59.3]} 3... e6 {[%clk 0:02:58.9]}
4. Nc3 {[%clk 0:02:58.7]} 4... exd5 {[%clk 0:02:58.5]} 5. cxd5 {[%clk
0:02:59.5]} 5... d6 {[%clk 0:02:57.5]} 6. Nf3 {[%clk 0:02:59.2]} 6... g6 {[%clk
0:02:57.7]} 7. g3 {[%clk 0:02:59.2]} 7... Bg7 {[%clk 0:02:58]} 8. Bg2 {[%clk
0:02:58.3]} 8... O-O {[%clk 0:02:58.2]} 9. Nd2 {[%clk 0:02:58.3]} 9... Na6
{[%clk 0:02:49.1]} 10. Nc4 {[%clk 0:02:56.1]} 10... Nc7 {[%clk 0:02:48.5]} 11.
Bf4 {[%clk 0:02:56.2]} 11... Nfe8 {[%clk 0:02:48.2]} 12. Ne4 {[%clk 0:02:55.3]}
12... b5 {[%clk 0:02:36.4]} 13. Ncxd6 {[%clk 0:02:54.1]} 13... Bxb2 {[%clk
0:02:21.5]} 14. Rb1 {[%clk 0:02:43]} 14... Bg7 {[%clk 0:02:09.1]} 15. O-O {[%clk
0:01:49.1]} 15... c4 {[%clk 0:01:43.8]} 16. Nxe8 {[%clk 0:01:09.7]} 16... Rxe8
{[%clk 0:01:40.1]} 17. d6 {[%clk 0:01:09.3]} 17... Ne6 {[%clk 0:01:36.2]} 18.
Qd2 {[%clk 0:00:55.1]} 18... Nxf4 {[%clk 0:01:27.3]} 19. Qxf4 {[%clk 0:00:53.7]}
19... Rb8 {[%clk 0:01:25.1]} 20. Rfd1 {[%clk 0:00:47.3]} 20... Bd7 {[%clk
0:01:25]} 21. h4 {[%clk 0:00:43.7]} 21... f5 {[%clk 0:01:21.2]} 22. Nc5 {[%clk
0:00:42.2]} 22... Rxe2 {[%clk 0:01:13.9]} 23. Bd5+ {[%clk 0:00:41.6]} 23... Kh8
{[%clk 0:01:10.9]} 24. Nxd7 {[%clk 0:00:41.2]} 24... Qxd7 {[%clk 0:01:09.4]} 25.
Bxc4 {[%clk 0:00:41.6]} 25... Re4 {[%clk 0:01:04.7]} 26. Bxb5 {[%clk 0:00:40.3]}
26... Rxb5 {[%clk 0:00:37.2]} 27. Rxb5 {[%clk 0:00:39.7]} 27... Rxf4 {[%clk
0:00:20.6]} 28. Rb8+ {[%clk 0:00:38.4]} 28... Bf8 {[%clk 0:00:20.8]} 29. gxf4
{[%clk 0:00:37.8]} 29... Kg7 {[%clk 0:00:19.9]} 30. Rb4 {[%clk 0:00:29.7]} 30...
Kf6 {[%clk 0:00:16.4]} 31. Rbd4 {[%clk 0:00:27.2]} 31... a5 {[%clk 0:00:13.3]}
32. Rd5 {[%clk 0:00:26.1]} 32... a4 {[%clk 0:00:12]} 33. a3 {[%clk 0:00:24.7]}
33... Ke6 {[%clk 0:00:11.1]} 34. h5 {[%clk 0:00:22.6]} 34... gxh5 {[%clk
0:00:09]} 35. Kg2 {[%clk 0:00:22.3]} 35... h4 {[%clk 0:00:07.4]} 36. Kh3 {[%clk
0:00:17.6]} 36... Bh6 {[%clk 0:00:06.7]} 37. Re5+ {[%clk 0:00:17.1]} 37... Kf6
{[%clk 0:00:05.3]} 38. Rd4 {[%clk 0:00:14.2]} 38... Bxf4 {[%clk 0:00:03.6]} 39.
Re7 {[%clk 0:00:13.2]} 39... Qd8 {[%clk 0:00:02.3]} 40. Rxh7 {[%clk 0:00:10.7]}
1-0

[Event "*** SCC Grand Prix: Titled Tuesday Blitz"]
[Site "Chess.com"]
[Date "2020.08.11"]
[Round "8"]
[White "ExtremeLearner"]
[Black "GoldenShare"]
[Result "0-1"]
[WhiteElo "2361"]
[BlackElo "2506"]
[TimeControl "180+1"]
[EndTime "11:34:39 PDT"]
[Termination "GoldenShare won by resignation"]

1. d4 {[%clk 0:03:00.9]} 1... d5 {[%clk 0:03:00]} 2. Nf3 {[%clk 0:02:57.7]} 2...
Nf6 {[%clk 0:02:59.8]} 3. g3 {[%clk 0:02:48.7]} 3... Bg4 {[%clk 0:02:59.4]} 4.
Bg2 {[%clk 0:02:45.9]} 4... c6 {[%clk 0:02:51.5]} 5. O-O {[%clk 0:02:45.7]} 5...
Nbd7 {[%clk 0:02:50.4]} 6. c4 {[%clk 0:02:45.2]} 6... e6 {[%clk 0:02:50.7]} 7.
Nc3 {[%clk 0:02:34.1]} 7... Be7 {[%clk 0:02:50.6]} 8. b3 {[%clk 0:02:29.9]} 8...
O-O {[%clk 0:02:35]} 9. Bb2 {[%clk 0:02:27.8]} 9... a6 {[%clk 0:02:35.3]} 10.
Re1 {[%clk 0:02:24.1]} 10... b5 {[%clk 0:02:33.8]} 11. Ne5 {[%clk 0:02:08.8]}
11... Nxe5 {[%clk 0:02:21.8]} 12. dxe5 {[%clk 0:02:08.9]} 12... Nd7 {[%clk
0:02:22.7]} 13. cxd5 {[%clk 0:01:53.1]} 13... cxd5 {[%clk 0:02:20]} 14. Qd4
{[%clk 0:01:44.2]} 14... Bf5 {[%clk 0:02:17.3]} 15. e4 {[%clk 0:01:41.6]} 15...
Bc5 {[%clk 0:02:10.4]} 16. Qd2 {[%clk 0:01:40]} 16... dxe4 {[%clk 0:02:04.5]}
17. Nxe4 {[%clk 0:01:38]} 17... Bxe4 {[%clk 0:01:48.8]} 18. Bxe4 {[%clk
0:01:36.9]} 18... Rc8 {[%clk 0:01:41.3]} 19. Rad1 {[%clk 0:01:36.4]} 19... Nb6
{[%clk 0:01:35.6]} 20. Bxh7+ {[%clk 0:01:27.3]} 20... Kxh7 {[%clk 0:01:05.6]}
21. Qc2+ {[%clk 0:01:27]} 21... g6 {[%clk 0:01:06.1]} 22. Rxd8 {[%clk
0:01:26.3]} 22... Rfxd8 {[%clk 0:01:07]} 23. Qe2 {[%clk 0:01:16.6]} 23... Nd5
{[%clk 0:01:00.4]} 24. Qf3 {[%clk 0:01:06.5]} 24... Kg7 {[%clk 0:00:56.5]} 25.
h4 {[%clk 0:00:59.8]} 25... Bb6 {[%clk 0:00:49.8]} 26. h5 {[%clk 0:00:54.8]}
26... Rc2 {[%clk 0:00:38.9]} 27. Re2 {[%clk 0:00:54.8]} 27... Rdc8 {[%clk
0:00:39.4]} 28. Kg2 {[%clk 0:00:35.9]} 28... Rxe2 {[%clk 0:00:34.2]} 29. Qxe2
{[%clk 0:00:34.7]} 29... Nb4 {[%clk 0:00:34]} 30. Qf3 {[%clk 0:00:30.2]} 30...
Rc2 {[%clk 0:00:29.8]} 31. Qf6+ {[%clk 0:00:29.1]} 31... Kg8 {[%clk 0:00:28.9]}
32. Qe7 {[%clk 0:00:12.6]} 32... Rxf2+ {[%clk 0:00:20.5]} 33. Kh3 {[%clk
0:00:12.8]} 33... Nd5 {[%clk 0:00:16.2]} 34. Qe8+ {[%clk 0:00:10.8]} 34... Kg7
{[%clk 0:00:16.5]} 35. h6+ {[%clk 0:00:09.9]} 35... Kxh6 {[%clk 0:00:11.9]} 36.
Qh8+ {[%clk 0:00:10.2]} 36... Kg5 {[%clk 0:00:12.5]} 37. Qh4+ {[%clk 0:00:11.1]}
37... Kf5 {[%clk 0:00:13.4]} 38. g4+ {[%clk 0:00:09]} 38... Ke4 {[%clk
0:00:13.3]} 39. g5+ {[%clk 0:00:06]} 39... Nf4+ {[%clk 0:00:13.8]} 40. Kg3
{[%clk 0:00:05.5]} 40... Rf3+ {[%clk 0:00:10.8]} 41. Kh2 {[%clk 0:00:04.4]}
41... Rh3+ {[%clk 0:00:11]} 42. Qxh3 {[%clk 0:00:04.8]} 42... Nxh3 {[%clk
0:00:11.9]} 43. Kxh3 {[%clk 0:00:05.7]} 43... Bd4 {[%clk 0:00:12.5]} 44. Kg4
{[%clk 0:00:06.6]} 44... Bxb2 {[%clk 0:00:12.6]} 0-1

[Event "*** SCC Grand Prix: Titled Tuesday Blitz"]
[Site "Chess.com"]
[Date "2020.08.11"]
[Round "8"]
[White "RaunakSadhwani2005"]
[Black "DenLaz"]
[Result "1-0"]
[WhiteElo "2944"]
[BlackElo "2683"]
[TimeControl "180+1"]
[EndTime "11:34:44 PDT"]
[Termination "RaunakSadhwani2005 won by resignation"]

1. d4 {[%clk 0:03:00.9]} 1... d5 {[%clk 0:02:58.6]} 2. Bf4 {[%clk 0:02:56.3]}
2... Nf6 {[%clk 0:02:58.2]} 3. e3 {[%clk 0:02:56.7]} 3... e6 {[%clk 0:02:58.8]}
4. Nf3 {[%clk 0:02:56.5]} 4... Bd6 {[%clk 0:02:59.2]} 5. Bd3 {[%clk 0:02:57]}
5... O-O {[%clk 0:02:58.7]} 6. Nbd2 {[%clk 0:02:56.8]} 6... c5 {[%clk 0:02:59]}
7. c3 {[%clk 0:02:57]} 7... Nc6 {[%clk 0:02:58.7]} 8. Bg3 {[%clk 0:02:54.4]}
8... b6 {[%clk 0:02:58.2]} 9. e4 {[%clk 0:02:52.7]} 9... Be7 {[%clk 0:02:56.7]}
10. e5 {[%clk 0:02:52.2]} 10... Nh5 {[%clk 0:02:56.5]} 11. Ng5 {[%clk
0:02:52.3]} 11... Bxg5 {[%clk 0:02:55.1]} 12. Qxh5 {[%clk 0:02:52.1]} 12... g6
{[%clk 0:02:55.1]} 13. Qe2 {[%clk 0:02:51.5]} 13... cxd4 {[%clk 0:02:55]} 14. h4
{[%clk 0:02:51.4]} 14... Bh6 {[%clk 0:02:54.6]} 15. h5 {[%clk 0:02:51]} 15...
dxc3 {[%clk 0:02:52.8]} 16. bxc3 {[%clk 0:02:50.6]} 16... Bg7 {[%clk 0:02:52.6]}
17. hxg6 {[%clk 0:02:49.3]} 17... fxg6 {[%clk 0:02:39.5]} 18. Nf3 {[%clk
0:02:49.1]} 18... Bd7 {[%clk 0:02:18.1]} 19. Qe3 {[%clk 0:02:38.2]} 19... Ne7
{[%clk 0:01:58]} 20. Bh4 {[%clk 0:02:00.1]} 20... Qe8 {[%clk 0:01:29.8]} 21. Bf6
{[%clk 0:01:42.3]} 21... Rxf6 {[%clk 0:01:01.5]} 22. exf6 {[%clk 0:01:37.9]}
22... Bxf6 {[%clk 0:01:02.4]} 23. O-O {[%clk 0:01:34.2]} 23... Rc8 {[%clk
0:00:46]} 24. Rac1 {[%clk 0:01:27.7]} 24... Nf5 {[%clk 0:00:37.5]} 25. Bxf5
{[%clk 0:01:26.2]} 25... exf5 {[%clk 0:00:38.4]} 26. Qd2 {[%clk 0:01:26.3]}
26... Bc6 {[%clk 0:00:25.4]} 27. Rfe1 {[%clk 0:01:26.7]} 27... Qf8 {[%clk
0:00:23.1]} 28. Nd4 {[%clk 0:01:27]} 28... Bb7 {[%clk 0:00:22.9]} 29. Re6 {[%clk
0:01:17.5]} 29... Rd8 {[%clk 0:00:19.1]} 30. Rce1 {[%clk 0:01:17.2]} 30... Bc8
{[%clk 0:00:18.5]} 31. R6e2 {[%clk 0:01:16.2]} 31... Bd7 {[%clk 0:00:17.5]} 32.
Qd3 {[%clk 0:01:10.6]} 32... Kg7 {[%clk 0:00:15.1]} 33. Qa6 {[%clk 0:01:07.1]}
33... Ra8 {[%clk 0:00:09.4]} 34. Qb7 {[%clk 0:01:07.3]} 34... Qc8 {[%clk
0:00:08.8]} 35. Qxd5 {[%clk 0:00:56.4]} 35... Be8 {[%clk 0:00:05]} 36. Rxe8
{[%clk 0:00:48.1]} 36... Qxe8 {[%clk 0:00:05.9]} 37. Qb7+ {[%clk 0:00:41.4]}
37... Kh6 {[%clk 0:00:04]} 38. Rxe8 {[%clk 0:00:41.2]} 38... Rxe8 {[%clk
0:00:04.9]} 39. Qxa7 {[%clk 0:00:41.5]} 39... Re1+ {[%clk 0:00:04.3]} 40. Kh2
{[%clk 0:00:41.9]} 40... Be5+ {[%clk 0:00:04.9]} 41. g3 {[%clk 0:00:42.3]} 41...
Rb1 {[%clk 0:00:04.2]} 42. Qe7 {[%clk 0:00:36.9]} 42... Bxd4 {[%clk 0:00:04.5]}
43. Qh4+ {[%clk 0:00:34.8]} 43... Kg7 {[%clk 0:00:04.7]} 44. Qxd4+ {[%clk
0:00:35.2]} 44... Kh6 {[%clk 0:00:05.4]} 45. Qh4+ {[%clk 0:00:34.1]} 45... Kg7
{[%clk 0:00:05.4]} 46. Qe7+ {[%clk 0:00:34.6]} 46... Kh6 {[%clk 0:00:05.7]} 47.
a4 {[%clk 0:00:32]} 47... Rb2 {[%clk 0:00:05.6]} 48. Kg2 {[%clk 0:00:32.3]}
48... Rb3 {[%clk 0:00:05.9]} 49. Qh4+ {[%clk 0:00:26.7]} 49... Kg7 {[%clk
0:00:05.9]} 50. Qc4 {[%clk 0:00:27.4]} 50... Rb2 {[%clk 0:00:05.6]} 51. Qd4+
{[%clk 0:00:27]} 51... Kh6 {[%clk 0:00:05.7]} 52. c4 {[%clk 0:00:27.5]} 52...
Rb4 {[%clk 0:00:06]} 53. Qd2+ {[%clk 0:00:27.5]} 53... Kg7 {[%clk 0:00:06.7]}
54. Qxb4 {[%clk 0:00:28]} 1-0

[Event "*** SCC Grand Prix: Titled Tuesday Blitz"]
[Site "Chess.com"]
[Date "2020.08.11"]
[Round "8"]
[White "UmbertoConcelli"]
[Black "Chess_Boxer123"]
[Result "1-0"]
[WhiteElo "2705"]
[BlackElo "2581"]
[TimeControl "180+1"]
[EndTime "11:34:44 PDT"]
[Termination "UmbertoConcelli won on time"]

1. d4 {[%clk 0:03:00.9]} 1... d5 {[%clk 0:02:57.9]} 2. Nf3 {[%clk 0:03:01]} 2...
Nf6 {[%clk 0:02:56.6]} 3. Bg5 {[%clk 0:03:01.4]} 3... Ne4 {[%clk 0:02:56.4]} 4.
Bh4 {[%clk 0:03:00.7]} 4... c5 {[%clk 0:02:56.3]} 5. e3 {[%clk 0:02:59.2]} 5...
Nc6 {[%clk 0:02:55.9]} 6. c3 {[%clk 0:02:57.9]} 6... Qb6 {[%clk 0:02:53.4]} 7.
Qb3 {[%clk 0:02:57.5]} 7... c4 {[%clk 0:02:53.1]} 8. Qc2 {[%clk 0:02:57.9]} 8...
Bf5 {[%clk 0:02:51.2]} 9. Qc1 {[%clk 0:02:57.6]} 9... e6 {[%clk 0:02:50.2]} 10.
Nbd2 {[%clk 0:02:56.9]} 10... h6 {[%clk 0:02:47.7]} 11. Be2 {[%clk 0:02:56.1]}
11... Rc8 {[%clk 0:02:47.1]} 12. O-O {[%clk 0:02:54.6]} 12... Bd6 {[%clk
0:02:47.5]} 13. Nxe4 {[%clk 0:02:54]} 13... Bxe4 {[%clk 0:02:47.7]} 14. Nd2
{[%clk 0:02:54.4]} 14... Bh7 {[%clk 0:02:47.5]} 15. Bf3 {[%clk 0:02:51.1]} 15...
Bd3 {[%clk 0:02:39.2]} 16. Re1 {[%clk 0:02:49.8]} 16... g5 {[%clk 0:02:34.5]}
17. Bg3 {[%clk 0:02:48.8]} 17... Bxg3 {[%clk 0:02:34.7]} 18. hxg3 {[%clk
0:02:48.1]} 18... f5 {[%clk 0:02:35.6]} 19. b3 {[%clk 0:02:41.5]} 19... Na5
{[%clk 0:02:01.4]} 20. Qa3 {[%clk 0:02:38.3]} 20... Kf7 {[%clk 0:01:48.9]} 21.
Bh5+ {[%clk 0:02:36]} 21... Kf6 {[%clk 0:01:48.5]} 22. g4 {[%clk 0:02:28.4]}
22... Rhd8 {[%clk 0:01:39]} 23. Nf3 {[%clk 0:01:50.2]} 23... Nc6 {[%clk
0:01:35.3]} 24. Ne5 {[%clk 0:01:34.3]} 24... Nxe5 {[%clk 0:01:22]} 25. dxe5+
{[%clk 0:01:35.2]} 25... Kxe5 {[%clk 0:01:21.7]} 26. Qe7 {[%clk 0:01:34.3]}
26... Qc5 {[%clk 0:00:52.4]} 27. Qg7+ {[%clk 0:01:10.4]} 27... Kd6 {[%clk
0:00:52.3]} 28. gxf5 {[%clk 0:01:10.6]} 28... exf5 {[%clk 0:00:49.9]} 29. Qxh6+
{[%clk 0:01:06.5]} 29... Kc7 {[%clk 0:00:48.8]} 30. Qxg5 {[%clk 0:01:03.9]}
30... Kb8 {[%clk 0:00:49.1]} 31. Qf4+ {[%clk 0:00:59.4]} 31... Ka8 {[%clk
0:00:49]} 32. b4 {[%clk 0:00:59]} 32... Qe7 {[%clk 0:00:46.7]} 33. Bf3 {[%clk
0:00:58.2]} 33... Rh8 {[%clk 0:00:46]} 34. Bxd5 {[%clk 0:00:50.8]} 34... Qh7
{[%clk 0:00:45.6]} 35. f3 {[%clk 0:00:48.7]} 35... Qd7 {[%clk 0:00:24.5]} 36.
Qd4 {[%clk 0:00:43]} 36... Qc7 {[%clk 0:00:19.3]} 37. Kf2 {[%clk 0:00:40.3]}
37... Rhd8 {[%clk 0:00:13.4]} 38. Rh1 {[%clk 0:00:22.2]} 38... Qd7 {[%clk
0:00:13.3]} 39. e4 {[%clk 0:00:20.7]} 39... fxe4 {[%clk 0:00:13.1]} 40. Bxe4
{[%clk 0:00:20.3]} 40... Qc7 {[%clk 0:00:07.3]} 41. Qe3 {[%clk 0:00:19]} 41...
Qg7 {[%clk 0:00:05.3]} 42. Rh7 {[%clk 0:00:15.7]} 42... Qxc3 {[%clk 0:00:02.6]}
43. Bxb7+ {[%clk 0:00:15]} 43... Kb8 {[%clk 0:00:03]} 44. Qf4+ {[%clk
0:00:13.9]} 1-0

[Event "*** SCC Grand Prix: Titled Tuesday Blitz"]
[Site "Chess.com"]
[Date "2020.08.11"]
[Round "8"]
[White "DinaBelenkaya"]
[Black "Mr_Sinigami"]
[Result "1-0"]
[WhiteElo "2355"]
[BlackElo "2575"]
[TimeControl "180+1"]
[EndTime "11:34:44 PDT"]
[Termination "DinaBelenkaya won on time"]

1. e4 {[%clk 0:03:00.9]} 1... d5 {[%clk 0:02:59.2]} 2. exd5 {[%clk 0:02:59.9]}
2... Nf6 {[%clk 0:02:59.5]} 3. Bb5+ {[%clk 0:02:53.2]} 3... Bd7 {[%clk
0:02:57.3]} 4. Bc4 {[%clk 0:02:53.3]} 4... Bf5 {[%clk 0:02:43.2]} 5. Nc3 {[%clk
0:02:50.5]} 5... Nbd7 {[%clk 0:02:40.3]} 6. Nf3 {[%clk 0:02:44.7]} 6... Nb6
{[%clk 0:02:39.3]} 7. Bb5+ {[%clk 0:02:44.1]} 7... Bd7 {[%clk 0:02:38.5]} 8. Qe2
{[%clk 0:02:27.4]} 8... Nbxd5 {[%clk 0:02:02.1]} 9. Nxd5 {[%clk 0:02:26.1]} 9...
Nxd5 {[%clk 0:02:01.4]} 10. O-O {[%clk 0:02:20.7]} 10... c6 {[%clk 0:01:45.7]}
11. Bc4 {[%clk 0:02:19]} 11... Bg4 {[%clk 0:01:36.2]} 12. h3 {[%clk 0:01:57.4]}
12... Bh5 {[%clk 0:01:31.8]} 13. g4 {[%clk 0:01:57.5]} 13... Bg6 {[%clk
0:01:31.3]} 14. Ne5 {[%clk 0:01:54.7]} 14... e6 {[%clk 0:01:24.2]} 15. f4 {[%clk
0:01:48.6]} 15... Qh4 {[%clk 0:01:02.1]} 16. Bxd5 {[%clk 0:01:33.7]} 16... Qxh3
{[%clk 0:00:44.8]} 17. Nxc6 {[%clk 0:01:26.3]} 17... bxc6 {[%clk 0:00:13.4]} 18.
Bxc6+ {[%clk 0:01:27.2]} 18... Kd8 {[%clk 0:00:13.4]} 19. d4 {[%clk 0:00:33.3]}
19... Rc8 {[%clk 0:00:10.6]} 20. Bg2 {[%clk 0:00:28.2]} 20... Qg3 {[%clk
0:00:09.9]} 21. Rf3 {[%clk 0:00:16.3]} 21... Qxg4 {[%clk 0:00:09.1]} 22. Qb5
{[%clk 0:00:12.4]} 22... Bd6 {[%clk 0:00:08]} 23. c4 {[%clk 0:00:09.5]} 23...
Be4 {[%clk 0:00:06.5]} 24. Qa5+ {[%clk 0:00:05.7]} 24... Bc7 {[%clk 0:00:06]}
25. Qg5+ {[%clk 0:00:04.2]} 25... Qxg5 {[%clk 0:00:05.1]} 26. fxg5 {[%clk
0:00:05.1]} 26... Bxf3 {[%clk 0:00:05.3]} 27. Bxf3 {[%clk 0:00:06]} 27... Bd6
{[%clk 0:00:05.2]} 28. b3 {[%clk 0:00:05.7]} 28... Ke7 {[%clk 0:00:05.1]} 29.
Kg2 {[%clk 0:00:05.7]} 29... f6 {[%clk 0:00:05.1]} 30. Be3 {[%clk 0:00:05.5]}
30... h6 {[%clk 0:00:05.3]} 31. g6 {[%clk 0:00:05.1]} 31... f5 {[%clk
0:00:04.7]} 32. Re1 {[%clk 0:00:04]} 32... Kf6 {[%clk 0:00:04.4]} 33. Bh5 {[%clk
0:00:03.4]} 33... e5 {[%clk 0:00:04.4]} 34. Bf2 {[%clk 0:00:03.7]} 34... Rhe8
{[%clk 0:00:02.8]} 35. Bh4+ {[%clk 0:00:03.8]} 35... Ke6 {[%clk 0:00:02.4]} 36.
dxe5 {[%clk 0:00:03.4]} 36... Bxe5 {[%clk 0:00:02.4]} 37. Bf3 {[%clk 0:00:02.5]}
37... Kd6 {[%clk 0:00:02.2]} 38. Bd5 {[%clk 0:00:02.6]} 38... Kc7 {[%clk
0:00:01.9]} 39. b4 {[%clk 0:00:01.8]} 39... Bd6 {[%clk 0:00:01.6]} 40. Rd1
{[%clk 0:00:02.4]} 40... Re3 {[%clk 0:00:01]} 41. Rb1 {[%clk 0:00:02.4]} 1-0

[Event "*** SCC Grand Prix: Titled Tuesday Blitz"]
[Site "Chess.com"]
[Date "2020.08.11"]
[Round "8"]
[White "TioCridineno"]
[Black "Novoselski"]
[Result "1-0"]
[WhiteElo "2219"]
[BlackElo "2360"]
[TimeControl "180+1"]
[EndTime "11:34:45 PDT"]
[Termination "TioCridineno won by resignation"]

1. e4 {[%clk 0:03:00.9]} 1... c5 {[%clk 0:03:00]} 2. Nf3 {[%clk 0:02:50.7]} 2...
d6 {[%clk 0:03:00]} 3. d4 {[%clk 0:02:50.2]} 3... cxd4 {[%clk 0:03:00.9]} 4.
Nxd4 {[%clk 0:02:50.9]} 4... Nf6 {[%clk 0:03:01.3]} 5. Nc3 {[%clk 0:02:51.4]}
5... a6 {[%clk 0:03:01.6]} 6. Bg5 {[%clk 0:02:51.2]} 6... e6 {[%clk 0:03:01.8]}
7. f4 {[%clk 0:02:51.4]} 7... Qc7 {[%clk 0:03:01.8]} 8. Qf3 {[%clk 0:02:51]}
8... b5 {[%clk 0:03:00.7]} 9. O-O-O {[%clk 0:02:51]} 9... Bb7 {[%clk 0:03:00.6]}
10. Bd3 {[%clk 0:02:50.1]} 10... Nbd7 {[%clk 0:02:57.5]} 11. Rhe1 {[%clk
0:02:50.1]} 11... Nc5 {[%clk 0:02:56.2]} 12. Bxf6 {[%clk 0:02:45.6]} 12... gxf6
{[%clk 0:02:55.4]} 13. f5 {[%clk 0:02:46]} 13... e5 {[%clk 0:02:52.4]} 14. Nb3
{[%clk 0:02:45.4]} 14... h5 {[%clk 0:02:51.1]} 15. Kb1 {[%clk 0:02:44.7]} 15...
b4 {[%clk 0:02:46]} 16. Nd5 {[%clk 0:02:20.7]} 16... Bxd5 {[%clk 0:02:44.1]} 17.
exd5 {[%clk 0:02:21]} 17... a5 {[%clk 0:02:35.4]} 18. Nd4 {[%clk 0:02:19.4]}
18... Be7 {[%clk 0:02:07.2]} 19. Nc6 {[%clk 0:02:14.4]} 19... Qb6 {[%clk
0:02:02.8]} 20. h4 {[%clk 0:01:56.8]} 20... Kd7 {[%clk 0:02:00.4]} 21. Rg1
{[%clk 0:01:50.1]} 21... Rag8 {[%clk 0:01:54.2]} 22. g4 {[%clk 0:01:49.6]} 22...
hxg4 {[%clk 0:01:51]} 23. Rxg4 {[%clk 0:01:49.6]} 23... Nxd3 {[%clk 0:01:45.5]}
24. cxd3 {[%clk 0:01:29.5]} 24... Rxg4 {[%clk 0:01:36.5]} 25. Qxg4 {[%clk
0:01:28.9]} 25... a4 {[%clk 0:01:36.1]} 26. Rh1 {[%clk 0:01:19.6]} 26... b3
{[%clk 0:01:33.5]} 27. Qxa4 {[%clk 0:01:09.8]} 27... bxa2+ {[%clk 0:01:32.7]}
28. Ka1 {[%clk 0:01:04.1]} 28... Ke8 {[%clk 0:01:07.6]} 29. Qa8+ {[%clk
0:00:52.4]} 29... Bd8 {[%clk 0:01:05.5]} 30. Nxd8 {[%clk 0:00:48.9]} 30... Qxd8
{[%clk 0:01:04.8]} 31. Qxd8+ {[%clk 0:00:49.5]} 31... Kxd8 {[%clk 0:01:05.5]}
32. h5 {[%clk 0:00:49.9]} 32... Ke7 {[%clk 0:01:03]} 33. Kxa2 {[%clk 0:00:50]}
33... Kf8 {[%clk 0:01:01.2]} 34. h6 {[%clk 0:00:49.9]} 34... Kg8 {[%clk
0:00:59.6]} 35. h7+ {[%clk 0:00:47.2]} 35... Kg7 {[%clk 0:00:59.9]} 36. b4
{[%clk 0:00:46.5]} 36... Ra8+ {[%clk 0:00:58.8]} 37. Kb3 {[%clk 0:00:46.8]}
37... Kh8 {[%clk 0:00:59.4]} 38. b5 {[%clk 0:00:46.5]} 38... Rc8 {[%clk
0:00:55.6]} 39. Kb4 {[%clk 0:00:45.5]} 39... Rc2 {[%clk 0:00:52.5]} 40. b6
{[%clk 0:00:45.2]} 40... Rb2+ {[%clk 0:00:44.3]} 41. Ka5 {[%clk 0:00:45]} 41...
Rb3 {[%clk 0:00:40.9]} 42. Ka6 {[%clk 0:00:44.8]} 42... Ra3+ {[%clk 0:00:40.5]}
43. Kb7 {[%clk 0:00:44.6]} 43... Rxd3 {[%clk 0:00:40.3]} 44. Kc7 {[%clk
0:00:44.1]} 44... Rxd5 {[%clk 0:00:36.9]} 45. b7 {[%clk 0:00:43.7]} 45... Rb5
{[%clk 0:00:36.8]} 46. b8=Q+ {[%clk 0:00:34]} 46... Rxb8 {[%clk 0:00:37.7]} 47.
Kxb8 {[%clk 0:00:34.5]} 47... d5 {[%clk 0:00:38.5]} 48. Kc7 {[%clk 0:00:34.9]}
48... d4 {[%clk 0:00:38.8]} 49. Kd6 {[%clk 0:00:35.2]} 49... d3 {[%clk 0:00:38]}
50. Kd5 {[%clk 0:00:35.3]} 50... d2 {[%clk 0:00:38]} 51. Ke4 {[%clk 0:00:33.1]}
51... d1=Q {[%clk 0:00:34.6]} 52. Rxd1 {[%clk 0:00:32.5]} 52... Kxh7 {[%clk
0:00:35.5]} 53. Rg1 {[%clk 0:00:31.8]} 53... Kh6 {[%clk 0:00:35.2]} 54. Rg8
{[%clk 0:00:27.9]} 54... Kh7 {[%clk 0:00:34.5]} 55. Rg3 {[%clk 0:00:25.2]} 55...
Kh6 {[%clk 0:00:33.6]} 56. Kd5 {[%clk 0:00:22.7]} 56... Kh5 {[%clk 0:00:32.4]}
57. Kd6 {[%clk 0:00:22.8]} 57... Kh4 {[%clk 0:00:32.1]} 58. Rg1 {[%clk
0:00:22.2]} 58... e4 {[%clk 0:00:31.7]} 59. Ke7 {[%clk 0:00:22.3]} 59... e3
{[%clk 0:00:31]} 60. Kxf6 {[%clk 0:00:22.5]} 60... e2 {[%clk 0:00:31.4]} 61.
Kxf7 {[%clk 0:00:22.6]} 1-0